fUST/lending_fUST_20250210
["ID","MTS","AMOUNT","RATE_DAILY","PERIOD"]
[352581151,1739177457266,-553.86,0.00013835,2]
[352581152,1739177457276,-1386.96,0.00013835,2]
[352581153,1739177457286,-730.94,0.00013835,2]
[352581154,1739177457296,-518.92,0.00013835,2]
[352581155,1739177457306,-1361.66,0.00013835,2]
[352581156,1739177457316,-632.7,0.00013835,2]
[352581157,1739177457326,-510.1,0.00013835,2]
[352581158,1739177457335,-578.24,0.00013835,2]
[352581159,1739177457356,-652.46,0.00013835,2]
[352581160,1739177457367,-734.23,0.00013835,2]
[352581161,1739177457378,-920.48,0.00013835,2]
[352581162,1739177457388,-200.881105,0.00013835,2]
[352581163,1739177457397,-1611.44,0.00013835,2]
[352581164,1739177457407,-1685.93,0.00013835,2]
[352581165,1739177457417,-7549.32,0.00013835,2]
[352581166,1739177457428,-523.33,0.00013835,2]
[352581167,1739177457438,-939.87,0.00013835,2]
[352581168,1739177457448,-813.9,0.00013835,2]
[352581169,1739177457457,-3077.14,0.00013835,2]
[352581170,1739177457466,-215.839967,0.00013918,2]
[352581171,1739177457476,-154.604472,0.00013918,2]
[352581172,1739177457486,-215.839967,0.00013918,2]
[352581173,1739177457496,-154.604472,0.00013918,2]
[352581174,1739177457507,-154.604472,0.00013918,2]
[352581175,1739177457517,-215.839967,0.00013918,2]
[352581176,1739177457528,-215.839967,0.00013918,2]
[352581177,1739177457538,-154.604472,0.00013918,2]
[352581178,1739177457548,-431.3781815,0.00013918,2]
[352581179,1739177457558,-309.6105031,0.00013918,2]
[352581180,1739177457569,-778.55094216,0.00013923,2]
[352581181,1739177457581,-161.86712307,0.00013948,2]
[352581182,1739177457590,-500.0,0.00013972,2]
[352581183,1739177457600,-544.43,0.00013972,2]
[352581184,1739177457611,-641.23,0.00013972,2]
[352581185,1739177457620,-220.901933,0.00013972,2]
[352581186,1739177457630,-220.901933,0.00013972,2]
[352581187,1739177457640,-223.377237,0.00013972,2]
[352581188,1739177457650,-223.377237,0.00013972,2]
[352581189,1739177457660,-151.0,0.00013972,2]
[352581190,1739177457671,-751.73,0.00013972,2]
[352581191,1739177457681,-1311.7,0.00013972,2]
[352581192,1739177457691,-151.700334,0.00013972,2]
[352581193,1739177457701,-1804.75,0.00013972,2]
[352581194,1739177457710,-1023.9,0.00013972,2]
[352581195,1739177457720,-562.34,0.00013972,2]
[352581196,1739177457731,-5742.25,0.00013972,2]
[352581197,1739177457742,-934.87,0.00013972,2]
[352581198,1739177457752,-519.18,0.00013972,2]
[352581199,1739177457762,-640.17,0.00013972,2]
[352581200,1739177457772,-1231.86,0.00013972,2]
[352581201,1739177457782,-2809.93,0.00013972,2]
[352581202,1739177457791,-18466.36,0.00013972,2]
[352581203,1739177457801,-862.92,0.00013972,2]
[352581204,1739177457811,-655.15,0.00013972,2]
[352581205,1739177457820,-151.0,0.00013972,2]
[352581206,1739177457830,-151.0,0.00013972,2]
[352581207,1739177457840,-1386.96,0.00013972,2]
[352581208,1739177457849,-151.0,0.00013972,2]
[352581209,1739177457858,-730.94,0.00013972,2]
[352581210,1739177457868,-518.92,0.00013972,2]
[352581211,1739177457877,-1361.66,0.00013972,2]
[352581212,1739177457887,-632.7,0.00013972,2]
[352581213,1739177457897,-151.0,0.00013972,2]
[352581214,1739177457906,-510.1,0.00013972,2]
[352581215,1739177457916,-578.24,0.00013972,2]
[352581216,1739177457925,-278.258563,0.00013972,2]
[352581217,1739177457935,-652.46,0.00013972,2]
[352581218,1739177457944,-734.23,0.00013972,2]
[352581219,1739177457954,-151.0,0.00013972,2]
[352581220,1739177457964,-920.48,0.00013972,2]
[352581221,1739177457973,-1611.44,0.00013972,2]
[352581222,1739177457983,-1685.93,0.00013972,2]
[352581223,1739177457992,-7549.32,0.00013972,2]
[352581224,1739177458002,-523.33,0.00013972,2]
[352581225,1739177458012,-939.87,0.00013972,2]
[352581226,1739177458022,-813.9,0.00013972,2]
[352581227,1739177458031,-3077.14,0.00013972,2]
[352581228,1739177458041,-500.0,0.00013973,2]
[352581229,1739177458051,-183.62653941,0.00013973,2]
[352581230,1739177458060,-12789.08247687,0.00013986,2]
[352581231,1739177458069,-12789.08247687,0.00013993,2]
[352581232,1739177458079,-12789.08247687,0.00013994,2]
[352581233,1739177458088,-12555.02892546,0.00014,2]
[352581234,1739177458108,-71959.37293015,0.00014,2]
[352581235,1739177458119,-15535.1258977,0.00014,2]
[352581236,1739177458130,-7060.80686333,0.00014,2]
[352581237,1739177458143,-15324.3610065,0.00014,2]
[352581238,1739177458155,-295.504,0.00014,2]
[352581239,1739177458169,-91707.63026602,0.00014,2]
[352581240,1739177458182,-1680.51653166,0.00014,2]
[352581241,1739177458193,-657.87204931,0.00014,2]
[352581242,1739177458205,-1344.35388602,0.00014,2]
[352581243,1739177458241,-533.95664957,0.00014,2]
[352581244,1739177458252,-512.85629558,0.00014,2]
[352581245,1739177458350,-500.0,0.00010958,2]
[352581246,1739177458360,-500.0,0.00011095,2]
[352581247,1739177458370,-500.0,0.00011232,2]
[352581248,1739177458379,-162.5,0.00011369,2]
[352581249,1739177458428,-337.5,0.00011369,2]
[352581250,1739177458438,-435.02058648,0.00011506,2]
[352581251,1739177458456,-64.97941352,0.00011506,2]
[352581252,1739177458466,-500.0,0.00011643,2]
[352581253,1739177458475,-500.0,0.0001178,2]
[352581254,1739177458485,-3257.47347298,0.00014,2]
[352581256,1739178312014,613.57,0.00016,120]
[352581257,1739178312043,177.43,0.00016,120]
[352581258,1739178404130,-176.44026546,9.925e-05,2]
[352581259,1739178428098,-2728.02003845,9.925e-05,2]
[352581260,1739178442099,-919.76262115,9.925e-05,2]
[352581261,1739178442123,-300.0,0.00010025,2]
[352581262,1739178442145,-3558.24285317,0.00010026,2]
[352581263,1739178443199,-3417.25838128,0.00010026,2]
[352581264,1739178552119,-317.7,9.935e-05,2]
[352581265,1739178552142,-3947.03307325,0.00010026,2]
[352581266,1739178552163,-461.45292331,0.00010026,2]
[352581267,1739178558106,-233.67942619,0.00010026,2]
[352581268,1739178558132,-90.02180154,0.00010684,2]
[352581314,1739178632737,-400.0,0.00010685,2]
[352581316,1739178632747,-6644.85318224,0.00010845,2]
[352581322,1739178632791,-793.84435054,0.00010845,2]
[352581324,1739178632802,-175.33706479,0.00010858,2]
[352581326,1739178632811,-300.0,0.00010956,2]
[352581328,1739178632821,-552.26226718,0.00010957,2]
[352581330,1739178632830,-47.59035714,0.00010957,2]
[352581332,1739178632842,-349.06776028,0.00010957,2]
[352581335,1739178632853,-232.34567061,0.00010957,2]
[352581337,1739178632863,-500.0,0.00010957,2]
[352581339,1739178632873,-500.0,0.00010957,2]
[352581341,1739178632882,-500.0,0.00010957,2]
[352581343,1739178632892,-500.0,0.00010957,2]
[352581345,1739178632903,-500.0,0.00010957,2]
[352581346,1739178632913,-592.00578115,0.00010957,2]
[352581348,1739178632924,-500.0,0.00010957,2]
[352581350,1739178632934,-500.0,0.00010957,2]
[352581352,1739178632944,-159.20057812,0.00010957,2]
[352581354,1739178632954,-500.0,0.00010957,2]
[352581356,1739178632964,-500.0,0.00010957,2]
[352581358,1739178632974,-500.0,0.00010957,2]
[352581360,1739178632983,-432.90772472,0.00010957,2]
[352581365,1739178632997,-67.09227528,0.00010957,2]
[352581368,1739178633011,-347.22652452,0.00010957,2]
[352581373,1739178633032,-152.77347548,0.00010957,2]
[352581374,1739178633042,-221.77832785,0.00010957,2]
[352581376,1739178633054,-500.0,0.00010957,2]
[352581378,1739178633065,-500.0,0.00010957,2]
[352581381,1739178633077,-500.0,0.00010957,2]
[352581382,1739178633088,-453.24663508,0.00010958,2]
[352581385,1739178633099,-500.0,0.00010958,2]
[352581387,1739178633110,-500.0,0.00010958,2]
[352581389,1739178633120,-292.92270135,0.00010958,2]
[352581552,1739178638582,-500.0,0.00010958,2]
[352581553,1739178638592,-500.0,0.00010958,2]
[352581554,1739178638602,-500.0,0.00010958,2]
[352581555,1739178638612,-500.0,0.00010958,2]
[352581556,1739178638622,-500.0,0.00010958,2]
[352581557,1739178638631,-500.0,0.00010958,2]
[352581558,1739178638641,-500.0,0.00010958,2]
[352581559,1739178638650,-500.0,0.00010958,2]
[352581560,1739178638660,-500.0,0.00010958,2]
[352581561,1739178638669,-70.37987732,0.00010958,2]
[352581562,1739178638681,-429.62012268,0.00010958,2]
[352581563,1739178638690,-446.19554981,0.00010958,2]
[352581564,1739178638700,-500.0,0.00010958,2]
[352581565,1739178638710,-500.0,0.00010958,2]
[352581566,1739178638719,-500.0,0.00010958,2]
[352581567,1739178638729,-511.70904001,0.00010958,2]
[352581568,1739178638738,-500.0,0.00010958,2]
[352581569,1739178638747,-500.0,0.00010958,2]
[352581570,1739178638757,-500.0,0.00010958,2]
[352581571,1739178638767,-500.0,0.00010958,2]
[352581572,1739178638776,-281.79708117,0.00010958,2]
[352581573,1739178638786,-500.0,0.00010958,2]
[352581574,1739178638795,-500.0,0.00010958,2]
[352581575,1739178638804,-500.0,0.00010958,2]
[352581576,1739178638814,-549.77759903,0.00010958,2]
[352581577,1739178638823,-500.0,0.00010958,2]
[352581578,1739178638832,-500.0,0.00010958,2]
[352581579,1739178638842,-500.0,0.00010958,2]
[352581580,1739178638853,-500.0,0.00010958,2]
[352581581,1739178638862,-500.0,0.00010958,2]
[352581582,1739178638871,-500.0,0.00010958,2]
[352581583,1739178638880,-500.0,0.00010958,2]
[352581584,1739178638890,-500.0,0.00010958,2]
[352581585,1739178638899,-500.0,0.00010958,2]
[352581586,1739178638908,-500.0,0.00010958,2]
[352581587,1739178638918,-500.0,0.00010958,2]
[352581588,1739178638929,-500.0,0.00010958,2]
[352581589,1739178639043,-500.0,0.00010958,2]
[352581590,1739178639054,-500.0,0.00010958,2]
[352581591,1739178639063,-500.0,0.00010958,2]
[352581592,1739178639075,-500.0,0.00010958,2]
[352581593,1739178639085,-500.0,0.00010958,2]
[352581594,1739178639094,-500.0,0.00010958,2]
[352581595,1739178639104,-368.09917147,0.00010958,2]
[352581596,1739178639113,-500.0,0.00010958,2]
[352581597,1739178639122,-500.0,0.00010958,2]
[352581598,1739178639132,-500.0,0.00010958,2]
[352581599,1739178639141,-500.0,0.00010958,2]
[352581600,1739178639150,-500.0,0.00010958,2]
[352581601,1739178639159,-500.0,0.00010958,2]
[352581602,1739178639168,-500.0,0.00010958,2]
[352581603,1739178639178,-500.0,0.00010958,2]
[352581604,1739178639187,-500.0,0.00010958,2]
[352581605,1739178639197,-420.29993893,0.00010958,2]
[352581606,1739178639206,-500.0,0.00010958,2]
[352581607,1739178639215,-500.0,0.00010958,2]
[352581608,1739178639224,-500.0,0.00010958,2]
[352581609,1739178639233,-500.0,0.00010958,2]
[352581610,1739178639242,-500.0,0.00010958,2]
[352581611,1739178639251,-500.0,0.00010958,2]
[352581612,1739178639260,-500.0,0.00010958,2]
[352581613,1739178639270,-554.7339101,0.00010958,2]
[352581614,1739178639279,-500.0,0.00010958,2]
[352581615,1739178639288,-500.0,0.00010958,2]
[352581616,1739178639298,-500.0,0.00010958,2]
[352581617,1739178639308,-500.0,0.00010958,2]
[352581618,1739178639317,-500.0,0.00010958,2]
[352581619,1739178639327,-500.0,0.00010958,2]
[352581620,1739178639336,-500.0,0.00010958,2]
[352581621,1739178639346,-531.31439289,0.00010958,2]
[352581622,1739178639356,-292.24844763,0.00010958,2]
[352581623,1739178639366,-500.0,0.00010958,2]
[352581624,1739178639375,-500.0,0.00010958,2]
[352581625,1739178639384,-500.0,0.00010958,2]
[352581626,1739178639393,-500.0,0.00010958,2]
[352581627,1739178639402,-500.0,0.00010958,2]
[352581628,1739178639412,-500.0,0.00010958,2]
[352581629,1739178639421,-500.0,0.00010958,2]
[352581630,1739178639430,-500.0,0.00010958,2]
[352581631,1739178639440,-500.0,0.00010958,2]
[352581632,1739178639450,-500.0,0.00010958,2]
[352581633,1739178639460,-500.0,0.00010958,2]
[352581634,1739178639469,-500.0,0.00010958,2]
[352581635,1739178639478,-500.0,0.00010958,2]
[352581636,1739178639487,-500.0,0.00010958,2]
[352581637,1739178639497,-500.0,0.00010958,2]
[352581638,1739178639509,-500.0,0.00010958,2]
[352581639,1739178639519,-500.0,0.00010958,2]
[352581640,1739178639528,-500.0,0.00010958,2]
[352581641,1739178639537,-500.0,0.00010958,2]
[352581642,1739178639546,-500.0,0.00010958,2]
[352581643,1739178639555,-500.0,0.00010958,2]
[352581644,1739178639565,-500.0,0.00010958,2]
[352581645,1739178639574,-500.0,0.00010958,2]
[352581646,1739178639583,-500.0,0.00010958,2]
[352581647,1739178639593,-535.0235395,0.00010958,2]
[352581648,1739178639601,-500.0,0.00010958,2]
[352581649,1739178639611,-500.0,0.00010958,2]
[352581650,1739178639620,-500.0,0.00010958,2]
[352581651,1739178639629,-500.0,0.00010958,2]
[352581652,1739178639639,-500.0,0.00010958,2]
[352581653,1739178639649,-515.43985974,0.00010958,2]
[352581654,1739178639658,-500.0,0.00010958,2]
[352581655,1739178639667,-500.0,0.00010958,2]
[352581656,1739178639677,-500.0,0.00010958,2]
[352581657,1739178639687,-500.0,0.00010958,2]
[352581658,1739178639696,-500.0,0.00010958,2]
[352581659,1739178639705,-500.0,0.00010958,2]
[352581660,1739178639715,-500.0,0.00010958,2]
[352581661,1739178639725,-500.0,0.00010958,2]
[352581662,1739178639734,-500.0,0.00010958,2]
[352581663,1739178639744,-500.0,0.00010958,2]
[352581664,1739178639754,-500.0,0.00010958,2]
[352581665,1739178639764,-500.0,0.00010958,2]
[352581666,1739178639774,-500.0,0.00010958,2]
[352581667,1739178639784,-500.0,0.00010958,2]
[352581668,1739178639794,-500.0,0.00010958,2]
[352581669,1739178639804,-500.0,0.00010958,2]
[352581670,1739178639814,-500.0,0.00010958,2]
[352581671,1739178639824,-500.0,0.00010958,2]
[352581672,1739178639834,-500.0,0.00010958,2]
[352581673,1739178639844,-500.0,0.00010958,2]
[352581674,1739178639853,-500.0,0.00010958,2]
[352581675,1739178639863,-500.0,0.00010958,2]
[352581676,1739178639872,-500.0,0.00010958,2]
[352581677,1739178639882,-500.0,0.00010958,2]
[352581678,1739178639894,-500.0,0.00010958,2]
[352581679,1739178639907,-558.17,0.00010958,2]
[352581680,1739178639921,-500.0,0.00010958,2]
[352581681,1739178639932,-500.0,0.00010958,2]
[352581682,1739178639942,-500.0,0.00010958,2]
[352581683,1739178639951,-500.0,0.00010958,2]
[352581684,1739178639961,-500.0,0.00010958,2]
[352581685,1739178639971,-500.0,0.00010958,2]
[352581686,1739178639981,-504.51334697,0.00010958,2]
[352581687,1739178639992,-500.0,0.00010958,2]
[352581688,1739178640005,-500.0,0.00010958,2]
[352581689,1739178640015,-500.0,0.00010958,2]
[352581690,1739178640025,-500.0,0.00010958,2]
[352581691,1739178640034,-500.0,0.00010958,2]
[352581693,1739178640046,-500.0,0.00010958,2]
[352581695,1739178640056,-501.56098355,0.00010958,2]
[352581697,1739178640066,-500.0,0.00010958,2]
[352581699,1739178640075,-500.0,0.00010958,2]
[352581700,1739178640084,-500.0,0.00010958,2]
[352581702,1739178640094,-500.0,0.00010958,2]
[352581704,1739178640103,-500.0,0.00010958,2]
[352581705,1739178640113,-500.0,0.00010958,2]
[352581706,1739178640122,-500.0,0.00010958,2]
[352581707,1739178640132,-500.0,0.00010958,2]
[352581708,1739178640144,-500.0,0.00010958,2]
[352581710,1739178640156,-500.0,0.00010958,2]
[352581711,1739178640169,-500.0,0.00010958,2]
[352581712,1739178640181,-500.0,0.00010958,2]
[352581713,1739178640192,-500.0,0.00010958,2]
[352581714,1739178640203,-500.0,0.00010958,2]
[352581715,1739178640214,-500.0,0.00010958,2]
[352581716,1739178640227,-500.0,0.00010958,2]
[352581717,1739178640238,-500.0,0.00010958,2]
[352581718,1739178640250,-500.0,0.00010958,2]
[352581719,1739178640262,-500.0,0.00010958,2]
[352581720,1739178640274,-500.0,0.00010958,2]
[352581721,1739178640285,-500.0,0.00010958,2]
[352581722,1739178640298,-607.03,0.00010958,2]
[352581723,1739178640310,-607.03,0.00010958,2]
[352581724,1739178640324,-607.03,0.00010958,2]
[352581725,1739178640335,-607.03,0.00010958,2]
[352581726,1739178640346,-607.03,0.00010958,2]
[352581727,1739178640359,-607.03,0.00010958,2]
[352581729,1739178640370,-607.03,0.00010958,2]
[352581731,1739178640382,-607.03,0.00010958,2]
[352581734,1739178640395,-607.03,0.00010958,2]
[352581736,1739178640407,-607.03,0.00010958,2]
[352581737,1739178640419,-500.0,0.00010958,2]
[352581738,1739178640430,-500.0,0.00010958,2]
[352581739,1739178640440,-500.0,0.00010958,2]
[352581740,1739178640450,-500.0,0.00010958,2]
[352581741,1739178640462,-500.0,0.00010958,2]
[352581742,1739178640472,-500.0,0.00010958,2]
[352581743,1739178640485,-500.0,0.00010958,2]
[352581744,1739178640498,-500.0,0.00010958,2]
[352581745,1739178640512,-500.0,0.00010958,2]
[352581746,1739178640524,-500.0,0.00010958,2]
[352581747,1739178640535,-500.0,0.00010958,2]
[352581748,1739178640548,-500.0,0.00010958,2]
[352581749,1739178640561,-500.0,0.00010958,2]
[352581750,1739178640574,-500.0,0.00010958,2]
[352581751,1739178640588,-500.0,0.00010958,2]
[352581752,1739178640598,-500.0,0.00010958,2]
[352581753,1739178640608,-500.0,0.00010958,2]
[352581754,1739178640618,-500.0,0.00010958,2]
[352581755,1739178640628,-500.0,0.00010958,2]
[352581756,1739178640639,-500.0,0.00010958,2]
[352581757,1739178640650,-500.0,0.00010958,2]
[352581758,1739178640663,-500.0,0.00010958,2]
[352581759,1739178640675,-500.0,0.00010958,2]
[352581760,1739178640685,-500.0,0.00010958,2]
[352581761,1739178640697,-289.85139457,0.00010958,2]
[352581762,1739178640710,-500.0,0.00010958,2]
[352581763,1739178640722,-500.0,0.00010958,2]
[352581764,1739178640734,-500.0,0.00010958,2]
[352581765,1739178640744,-500.0,0.00010958,2]
[352581766,1739178640755,-500.0,0.00010958,2]
[352581767,1739178640765,-500.0,0.00010958,2]
[352581768,1739178640776,-403.26758279,0.00010958,2]
[352581769,1739178640787,-500.0,0.00010958,2]
[352581770,1739178640797,-500.0,0.00010958,2]
[352581771,1739178640808,-500.0,0.00010958,2]
[352581772,1739178640819,-500.0,0.00010958,2]
[352581773,1739178640829,-500.0,0.00010958,2]
[352581774,1739178640840,-523.37030893,0.00010958,2]
[352581775,1739178640852,-500.0,0.00010958,2]
[352581776,1739178640863,-500.0,0.00010958,2]
[352581777,1739178640874,-500.0,0.00010958,2]
[352581778,1739178640884,-500.0,0.00010958,2]
[352581779,1739178640895,-500.0,0.00010958,2]
[352581780,1739178640906,-500.0,0.00010958,2]
[352581781,1739178640918,-500.0,0.00010958,2]
[352581782,1739178640928,-500.0,0.00010958,2]
[352581783,1739178640939,-500.0,0.00010958,2]
[352581784,1739178640950,-500.0,0.00010958,2]
[352581785,1739178640961,-500.0,0.00010958,2]
[352581786,1739178640971,-742.11,0.00010958,2]
[352581787,1739178640983,-500.0,0.00010958,2]
[352581788,1739178640994,-627.57801946,0.00010958,2]
[352581789,1739178641010,-500.0,0.00010958,2]
[352581790,1739178641021,-500.0,0.00010958,2]
[352581791,1739178641032,-500.0,0.00010958,2]
[352581792,1739178641045,-500.0,0.00010958,2]
[352581793,1739178641056,-500.0,0.00010958,2]
[352581794,1739178641067,-500.0,0.00010958,2]
[352581795,1739178641080,-500.0,0.00010958,2]
[352581796,1739178641091,-500.0,0.00010958,2]
[352581797,1739178641103,-500.0,0.00010958,2]
[352581798,1739178641114,-500.0,0.00010958,2]
[352581799,1739178641124,-500.0,0.00010958,2]
[352581800,1739178641135,-500.0,0.00010958,2]
[352581801,1739178641147,-500.0,0.00010958,2]
[352581802,1739178641158,-500.0,0.00010958,2]
[352581803,1739178641169,-500.0,0.00010958,2]
[352581804,1739178641182,-500.0,0.00010958,2]
[352581805,1739178641193,-500.0,0.00010958,2]
[352581806,1739178641204,-246.25628515,0.00010958,2]
[352581807,1739178641216,-500.0,0.00010958,2]
[352581808,1739178641227,-500.0,0.00010958,2]
[352581809,1739178641238,-500.0,0.00010958,2]
[352581810,1739178641250,-500.0,0.00010958,2]
[352581811,1739178641262,-500.0,0.00010958,2]
[352581812,1739178641273,-500.0,0.00010958,2]
[352581813,1739178641284,-500.0,0.00010958,2]
[352581814,1739178641295,-500.0,0.00010958,2]
[352581815,1739178641306,-500.0,0.00010958,2]
[352581816,1739178641317,-500.0,0.00010958,2]
[352581817,1739178641328,-500.0,0.00010958,2]
[352581818,1739178641339,-502.46518186,0.00010958,2]
[352581819,1739178641350,-500.0,0.00010958,2]
[352581820,1739178641362,-500.0,0.00010958,2]
[352581821,1739178641373,-255.3615794,0.00010958,2]
[352581822,1739178641390,-500.0,0.00010958,2]
[352581823,1739178641401,-500.0,0.00010958,2]
[352581824,1739178641412,-500.0,0.00010958,2]
[352581825,1739178641424,-500.0,0.00010958,2]
[352581826,1739178641433,-461.78918939,0.00010958,2]
[352581827,1739178641581,-500.0,0.00010958,2]
[352581828,1739178641591,-500.0,0.00010958,2]
[352581829,1739178641601,-500.0,0.00010958,2]
[352581830,1739178641611,-500.0,0.00010958,2]
[352581831,1739178641620,-500.0,0.00010958,2]
[352581832,1739178641630,-500.0,0.00010958,2]
[352581833,1739178641639,-500.0,0.00010958,2]
[352581834,1739178641649,-500.0,0.00010958,2]
[352581835,1739178641658,-500.0,0.00010958,2]
[352581836,1739178641668,-500.0,0.00010958,2]
[352581837,1739178641678,-500.0,0.00010958,2]
[352581838,1739178641687,-500.0,0.00010958,2]
[352581839,1739178641697,-500.0,0.00010958,2]
[352581840,1739178641707,-500.0,0.00010958,2]
[352581841,1739178641717,-500.0,0.00010958,2]
[352581842,1739178641727,-500.0,0.00010958,2]
[352581843,1739178641736,-500.0,0.00010958,2]
[352581844,1739178641746,-500.0,0.00010958,2]
[352581845,1739178641756,-500.0,0.00010958,2]
[352581846,1739178641766,-500.0,0.00010958,2]
[352581847,1739178641777,-500.0,0.00010958,2]
[352581848,1739178641787,-500.0,0.00010958,2]
[352581849,1739178641796,-377.10387859,0.00010958,2]
[352581850,1739178641806,-500.0,0.00010958,2]
[352581851,1739178641817,-500.0,0.00010958,2]
[352581852,1739178641827,-500.0,0.00010958,2]
[352581853,1739178641837,-500.0,0.00010958,2]
[352581854,1739178641847,-500.0,0.00010958,2]
[352581855,1739178641858,-500.0,0.00010958,2]
[352581856,1739178641868,-858.14,0.00010958,2]
[352581857,1739178641878,-500.0,0.00010958,2]
[352581858,1739178641888,-500.0,0.00010958,2]
[352581859,1739178641899,-500.0,0.00010958,2]
[352581860,1739178641909,-500.0,0.00010958,2]
[352581861,1739178641918,-500.0,0.00010958,2]
[352581862,1739178641928,-500.0,0.00010958,2]
[352581863,1739178641938,-537.94,0.00010958,2]
[352581864,1739178641947,-617.4,0.00010958,2]
[352581865,1739178641957,-500.0,0.00010958,2]
[352581866,1739178641967,-500.0,0.00010958,2]
[352581867,1739178641977,-500.0,0.00010958,2]
[352581868,1739178641987,-589.67865822,0.00010958,2]
[352581869,1739178641996,-500.0,0.00010958,2]
[352581870,1739178642012,-500.0,0.00010958,2]
[352581871,1739178642023,-500.0,0.00010958,2]
[352581872,1739178642033,-500.0,0.00010958,2]
[352581873,1739178642045,-500.0,0.00010958,2]
[352581874,1739178642055,-500.0,0.00010958,2]
[352581875,1739178642065,-500.0,0.00010958,2]
[352581876,1739178642076,-1006.77,0.00010958,2]
[352581877,1739178642086,-500.0,0.00010958,2]
[352581878,1739178642097,-500.0,0.00010958,2]
[352581879,1739178642106,-500.0,0.00010958,2]
[352581880,1739178642116,-500.0,0.00010958,2]
[352581881,1739178642127,-500.0,0.00010958,2]
[352581882,1739178642136,-500.0,0.00010958,2]
[352581883,1739178642146,-19548.37,0.00010958,2]
[352581884,1739178642156,-768.4,0.00010958,2]
[352581885,1739178642165,-768.4,0.00010958,2]
[352581886,1739178642174,-768.4,0.00010958,2]
[352581887,1739178642184,-768.4,0.00010958,2]
[352581888,1739178642194,-768.4,0.00010958,2]
[352581889,1739178642203,-560.17,0.00010958,2]
[352581890,1739178642212,-768.4,0.00010958,2]
[352581891,1739178642221,-768.4,0.00010958,2]
[352581892,1739178642230,-768.4,0.00010958,2]
[352581893,1739178642240,-768.4,0.00010958,2]
[352581894,1739178642249,-768.4,0.00010958,2]
[352581895,1739178642259,-768.4,0.00010958,2]
[352581896,1739178642268,-768.4,0.00010958,2]
[352581897,1739178642278,-768.4,0.00010958,2]
[352581898,1739178642287,-155.84549307,0.00010958,2]
[352581899,1739178642297,-325.52,0.00010958,2]
[352581900,1739178642306,-500.0,0.00010958,2]
[352581901,1739178642316,-1383.92,0.00010958,2]
[352581902,1739178642325,-500.0,0.00010958,2]
[352581903,1739178642335,-500.0,0.00010958,2]
[352581904,1739178642345,-923.08,0.00010958,2]
[352581905,1739178642355,-500.0,0.00010958,2]
[352581906,1739178642364,-500.0,0.00010958,2]
[352581907,1739178642374,-2923.13,0.00010958,2]
[352581908,1739178642383,-507.25262534,0.00010958,2]
[352581909,1739178642392,-428.83655808,0.00010958,2]
[352581910,1739178642402,-500.0,0.00010958,2]
[352581911,1739178642411,-500.0,0.00010958,2]
[352581912,1739178642421,-500.0,0.00010958,2]
[352581913,1739178642430,-500.0,0.00010958,2]